[Event "EYCC Open-U18 2019"]
[Site "Bratislava"]
[Date "2019.08.03"]
[Round "2.8"]
[White "Omorjan, Dejan"]
[Black "Pechac, Jergus"]
[Result "1/2-1/2"]
[ECO "D30"]
[WhiteElo "2317"]
[BlackElo "2469"]
[Annotator "ChessBase"]
[PlyCount "120"]
[EventDate "2019.08.02"]
[EventType "swiss"]
[EventCountry "SVK"]
[SourceTitle "playchess.com"]
[Source "ChessBase"]
[SourceQuality "1"]
[TimeControl "40/5400+30:1800+30"]

1. d4 {[%emt 0:00:00]} d5 {[%emt 0:00:00]} 2. c4 {[%emt 0:00:00]} c6 {[%emt 0:00:00]} 3. Nf3 {[%emt 0:00:08]} Nf6 {[%emt 0:00:00]} 4. e3 {[%emt 0:00:15]} e6 {[%emt 0:00:00]} 5. Nbd2 {[%emt 0:00:27]} a6 {[%emt 0:01:34]} 6. Bd3 {[%emt 0:01:55]} dxc4 {[%emt 0:00:19]} 7. Nxc4 {[%emt 0:01:14]} c5 {[%emt 0:00:42]} 8. O-O {[%emt 0:01:40]} Nc6 {[%emt 0:00:54]} 9. a3 {[%emt 0:08:00]} cxd4 {[%emt 0:01:06]} 10. exd4 {[%emt 0:00:48]} Be7 {[%emt 0:00:14]} 11. Nce5 {[%emt 0:05:08]} Bd7 {[%emt 0:03:35]} 12. Bf4 {[%emt 0:02:49]} O-O {[%emt 0:02:49]} 13. Rc1 {[%emt 0:02:28]} Rc8 {[%emt 0:00:42]} 14. Qe2 {[%emt 0:10:07]} Be8 {[%emt 0:07:48]} 15. Rcd1 {[%emt 0:08:19]} Nd5 {[%emt 0:03:59]} 16. Bg3 {[%emt 0:09:33]} Kh8 {[%emt 0:05:36]} 17. Rfe1 {[%emt 0:04:37]} Bf6 {[%emt 0:05:04]} 18. Qe4 {[%emt 0:03:33]} g6 {[%emt 0:00:06]} 19. h4 {[%emt 0:02:12]} Nce7 {[%emt 0:08:30]} 20. Bh2 {[%emt 0:08:54]} Nf5 {[%emt 0:01:49]} 21. Ng4 {[%emt 0:03:13]} Bg7 {[%emt 0:02:28]} 22. Nge5 {[%emt 0:05:39]} Kg8 {[%emt 0:09:58]} 23. h5 {[%emt 0:04:18]} gxh5 {[%emt 0:00:56]} 24. Qe2 {[%emt 0:06:42]} Ba4 {[%emt 0:13:45]} 25. Rc1 {[%emt 0:02:36]} Qf6 {[%emt 0:04:42]} 26. b3 {[%emt 0:02:20]} Rxc1 {[%emt 0:08:11]} 27. Rxc1 {[%emt 0:00:11]} Qh6 {[%emt 0:00:19]} 28. Re1 {[%emt 0:03:25]} Be8 {[%emt 0:08:18]} 29. Bxf5 {[%emt 0:02:20]} exf5 {[%emt 0:00:02]} 30. Nh4 {[%emt 0:01:07]} Qe6 {[%emt 0:02:00]} 31. Qf3 {[%emt 0:00:45]} f4 {[%emt 0:00:51]} 32. Bxf4 {[%emt 0:00:26]} Qf6 {[%emt 0:07:38]} 33. Qxd5 {[%emt 0:00:28]} Qxf4 {[%emt 0:00:13]} 34. Nhf3 {[%emt 0:00:46]} b5 {[%emt 0:01:29]} 35. b4 {[%emt 0:00:24]} Kh8 {[%emt 0:00:17]} 36. Nd3 {[%emt 0:00:21]} Qh6 {[%emt 0:00:43]} 37. Ng5 {[%emt 0:00:43]} Qf6 {[%emt 0:00:57]} 38. Rxe8 {[%emt 0:00:30]} Rxe8 {[%emt 0:00:02]} 39. Nxf7+ {[%emt 0:00:09]} Kg8 {[%emt 0:00:02]} 40. Ng5+ {[%emt 0:00:00]} Kh8 {[%emt 0:00:00]} 41. Ne5 {[%emt 0:08:48]} Bf8 {[%emt 0:02:59]} 42. Qd7 {[%emt 0:11:22]} Re7 {[%emt 0:00:57]} 43. Qd8 {[%emt 0:01:55]} Kg7 {[%emt 0:00:05]} 44. Ne4 {[%emt 0:02:09]} Qf4 {[%emt 0:01:08]} 45. Ng3 {[%emt 0:01:37]} Qc1+ {[%emt 0:02:31]} 46. Kh2 {[%emt 0:00:47]} Qf4 {[%emt 0:00:04]} 47. Kh3 {[%emt 0:03:14]} Kh8 {[%emt 0:04:24]} 48. Qc8 {[%emt 0:02:21]} Qf6 {[%emt 0:02:58]} 49. Nf5 {[%emt 0:01:27]} Re6 {[%emt 0:00:38]} 50. g4 {[%emt 0:01:29]} hxg4+ {[%emt 0:03:21]} 51. Kxg4 {[%emt 0:00:05]} Kg8 {[%emt 0:00:04]} 52. Kf4 {[%emt 0:00:56]} Rd6 {[%emt 0:00:47]} 53. Ke4 {[%emt 0:01:09]} Rd8 {[%emt 0:00:05]} 54. Qc3 {[%emt 0:00:27]} Qe6 {[%emt 0:03:41]} 55. Qg3+ {[%emt 0:00:21]} Kh8 {[%emt 0:00:05]} 56. Qg5 {[%emt 0:00:47]} Re8 {[%emt 0:01:29]} 57. f4 {[%emt 0:00:23]} Qc6+ {[%emt 0:00:39]} 58. Kd3 {[%emt 0:00:29]} Qe6 {[%emt 0:00:23]} 59. Ke4 {[%emt 0:00:14]} Qc6+ {[%emt 0:03:02]} 60. Kd3 {[%emt 0:00:11]} Qe6 {[%emt 0:00:18]} 1/2-1/2

[Event "EYCC Open-U18 2019"]
[Site "Bratislava"]
[Date "2019.08.03"]
[Round "2.9"]
[White "Levitskiy, Andrey"]
[Black "Erenberg, Ariel"]
[Result "1-0"]
[ECO "B33"]
[WhiteElo "2280"]
[BlackElo "2442"]
[Annotator "NA"]
[PlyCount "59"]
[EventDate "2019.08.02"]
[EventType "swiss"]
[EventCountry "SVK"]
[SourceTitle "playchess.com"]
[Source "ChessBase"]
[SourceQuality "1"]
[TimeControl "40/5400+30:1800+30"]

1. e4 {[%emt 0:00:00]} c5 {[%emt 0:00:00]} 2. Nf3 {[%emt 0:00:00]} Nc6 {[%emt 0:00:00]} 3. d4 {[%emt 0:00:23]} cxd4 {[%emt 0:00:00]} 4. Nxd4 {[%emt 0:00:05]} Nf6 {[%emt 0:00:00]} 5. Nc3 {[%emt 0:00:45]} e5 {[%emt 0:00:00]} 6. Ndb5 {[%emt 0:00:25]} d6 {[%emt 0:00:00]} 7. Bg5 {[%emt 0:01:45]} a6 {[%emt 0:00:04]} 8. Na3 {[%emt 0:00:08]} b5 {[%emt 0:00:42]} 9. Nd5 {[%emt 0:00:17]} Be7 {[%emt 0:00:15]} 10. Bxf6 {[%emt 0:00:17]} Bxf6 {[%emt 0:00:12]} 11. c4 {[%emt 0:00:14]} b4 {[%emt 0:00:09]} 12. Nc2 {[%emt 0:00:05]} O-O {[%emt 0:04:30]} 13. g3 {[%emt 0:01:10]} Bg5 {[%emt 0:00:29]} 14. Bg2 {[%emt 0:05:24]} a5 {[%emt 0:00:27]} 15. O-O {[%emt 0:01:24]} Be6 {[%emt 0:00:34]} 16. Qe2 {[%emt 0:07:32]} Rc8 {[%emt 0:39:00]} 17. Rad1 {[%emt 0:06:19]} Bxd5 {[%emt 0:03:10]} 18. Rxd5 {[%emt 0:03:43]} Ne7 {[%emt 0:00:38]} 19. Rdd1 {[%emt 0:05:14]} Qb6 {[%emt 0:00:54]} 20. b3 {[%emt 0:02:04]} a4 {[%emt 0:11:18]} 21. Kh1 {[%emt 0:01:58]} axb3 {[%emt 0:01:51]} 22. axb3 {[%emt 0:00:08]} Ra8 {[%emt 0:01:32]} 23. f4 Bh6 24. Ne3 {[%emt 0:18:31]} Ra3 {[%emt 0:01:30]} 25. Ng4 {[%emt 0:05:37]} Rxb3 {[%emt 0:01:39]} 26. Nxh6+ {[%emt 0:03:21]} gxh6 {[%emt 0:00:01]} 27. Qh5 {[%emt 0:03:04]} Ng6 {[%emt 0:07:57]} 28. f5 {[%emt 0:03:46]} Ne7 {[%emt 0:02:13]} 29. f6 {[%emt 0:00:28]} Ng6 {[%emt 0:04:49]} 30. Qxh6 {[%emt 0:00:08]} 1-0

[Event "EYCC Open-U18 2019"]
[Site "Bratislava"]
[Date "2019.08.03"]
[Round "2.10"]
[White "Halfhide, Sebastian"]
[Black "Salemgareev, Tagir"]
[Result "0-1"]
[ECO "A13"]
[WhiteElo "2286"]
[BlackElo "2412"]
[Annotator "NA"]
[PlyCount "86"]
[EventDate "2019.08.02"]
[EventType "swiss"]
[EventCountry "SVK"]
[SourceTitle "playchess.com"]
[Source "ChessBase"]
[SourceQuality "1"]
[TimeControl "40/5400+30:1800+30"]

1. c4 {[%emt 0:00:00]} e6 {[%emt 0:02:43]} 2. Nf3 {[%emt 0:04:33]} d5 {[%emt 0:00:21]} 3. g3 {[%emt 0:01:12]} d4 {[%emt 0:00:58]} 4. Bg2 {[%emt 0:02:00]} c5 {[%emt 0:01:32]} 5. O-O {[%emt 0:03:14]} Nc6 {[%emt 0:00:10]} 6. e3 {[%emt 0:04:43]} Nf6 {[%emt 0:00:21]} 7. exd4 {[%emt 0:04:26]} cxd4 {[%emt 0:00:13]} 8. d3 {[%emt 0:00:24]} Be7 {[%emt 0:00:24]} 9. Na3 {[%emt 0:03:58]} O-O {[%emt 0:05:55]} 10. Nc2 {[%emt 0:05:17]} Re8 {[%emt 0:03:15]} 11. Rb1 {[%emt 0:03:39]} e5 {[%emt 0:04:57]} 12. Re1 {[%emt 0:10:26]} Bf8 {[%emt 0:18:34]} 13. Bg5 {[%emt 0:04:28]} Bd7 {[%emt 0:08:05]} 14. b4 {[%emt 0:02:16]} h6 {[%emt 0:00:27]} 15. b5 {[%emt 0:09:40]} hxg5 {[%emt 0:11:00]} 16. bxc6 {[%emt 0:00:05]} Bxc6 {[%emt 0:00:04]} 17. Nxe5 {[%emt 0:00:11]} Bxg2 {[%emt 0:00:20]} 18. Kxg2 {[%emt 0:00:09]} Qc7 {[%emt 0:06:54]} 19. Nf3 {[%emt 0:06:19]} Rxe1 {[%emt 0:03:25]} 20. Ncxe1 {[%emt 0:00:29]} g4 {[%emt 0:03:02]} 21. Nxd4 {[%emt 0:09:03]} Rd8 {[%emt 0:00:44]} 22. Nb3 {[%emt 0:01:22]} a5 {[%emt 0:02:59]} 23. Kg1 {[%emt 0:04:07]} Qe5 {[%emt 0:13:24]} 24. Ng2 {[%emt 0:07:42]} a4 {[%emt 0:01:56]} 25. Nc1 {[%emt 0:00:51]} Bc5 {[%emt 0:01:48]} 26. Qxa4 {[%emt 0:05:47]} Nh7 {[%emt 0:02:25]} 27. Qd1 {[%emt 0:01:05]} Qf5 {[%emt 0:01:10]} 28. Ne3 {[%emt 0:01:11]} Bxe3 {[%emt 0:00:08]} 29. fxe3 {[%emt 0:00:04]} Ng5 {[%emt 0:00:05]} 30. Kg2 {[%emt 0:01:17]} Qe4+ {[%emt 0:03:24]} 31. dxe4 {[%emt 0:00:46]} Rxd1 {[%emt 0:00:03]} 32. Ra1 {[%emt 0:00:48]} Rd2+ {[%emt 0:00:21]} 33. Kf1 {[%emt 0:00:25]} Rxh2 {[%emt 0:00:34]} 34. Nb3 {[%emt 0:01:42]} Nxe4 {[%emt 0:00:44]} 35. a4 {[%emt 0:00:51]} Nd2+ {[%emt 0:01:11]} 36. Kg1 {[%emt 0:00:11]} Nxb3 {[%emt 0:00:10]} 37. Rb1 {[%emt 0:00:58]} Nd2 {[%emt 0:00:06]} 38. Rxb7 {[%emt 0:00:29]} Nf3+ {[%emt 0:00:27]} 39. Kf1 {[%emt 0:00:05]} Ra2 {[%emt 0:00:15]} 40. Rb4 {[%emt 0:00:00]} Nd2+ {[%emt 0:00:00]} 41. Kg1 {[%emt 0:01:37]} Ne4 {[%emt 0:00:41]} 42. c5 {[%emt 0:00:36]} Nxc5 {[%emt 0:00:19]} 43. Rxg4 {[%emt 0:00:09]} Rxa4 {[%emt 0:00:07]} 0-1

[Event "EYCC Open-U18 2019"]
[Site "Bratislava"]
[Date "2019.08.03"]
[Round "2.11"]
[White "Gaifullin, Artur"]
[Black "Papp, Levente"]
[Result "1/2-1/2"]
[ECO "A14"]
[WhiteElo "2453"]
[BlackElo "2362"]
[Annotator "ChessBase"]
[PlyCount "84"]
[EventDate "2019.08.02"]
[EventType "swiss"]
[EventCountry "SVK"]
[SourceTitle "playchess.com"]
[Source "ChessBase"]
[SourceQuality "1"]
[TimeControl "40/5400+30:1800+30"]

1. Nf3 {[%emt 0:00:00]} Nf6 {[%emt 0:00:00]} 2. c4 {[%emt 0:00:00]} e6 {[%emt 0:00:00]} 3. g3 {[%emt 0:00:15]} d5 {[%emt 0:01:42]} 4. Bg2 {[%emt 0:00:05]} Be7 {[%emt 0:00:07]} 5. O-O {[%emt 0:00:05]} O-O {[%emt 0:00:04]} 6. b3 {[%emt 0:00:34]} c5 {[%emt 0:00:54]} 7. Bb2 {[%emt 0:00:15]} d4 {[%emt 0:00:27]} 8. e3 {[%emt 0:00:06]} Nc6 {[%emt 0:00:05]} 9. exd4 {[%emt 0:00:17]} cxd4 {[%emt 0:00:07]} 10. Re1 {[%emt 0:00:04]} Re8 {[%emt 0:02:50]} 11. d3 {[%emt 0:01:35]} Bb4 {[%emt 0:09:07]} 12. Re2 {[%emt 0:00:50]} a5 {[%emt 0:02:08]} 13. a3 {[%emt 0:00:04]} Bf8 {[%emt 0:04:57]} 14. Ne5 {[%emt 0:01:11]} Nxe5 {[%emt 0:00:06]} 15. Rxe5 {[%emt 0:00:01]} Bd6 {[%emt 0:05:03]} 16. Re1 {[%emt 0:03:03]} e5 {[%emt 0:00:10]} 17. Nd2 {[%emt 0:00:05]} Rb8 {[%emt 0:01:12]} 18. Qc2 {[%emt 0:01:02]} b6 {[%emt 0:01:18]} 19. Ne4 {[%emt 0:05:32]} Nxe4 {[%emt 0:05:01]} 20. Bxe4 {[%emt 0:00:02]} Qd7 {[%emt 0:13:41]} 21. Qe2 {[%emt 0:06:24]} Bb7 {[%emt 0:01:41]} 22. Rab1 {[%emt 0:01:42]} f5 {[%emt 0:03:39]} 23. Bxb7 {[%emt 0:05:00]} Qxb7 {[%emt 0:00:13]} 24. Qd2 {[%emt 0:00:09]} Qf3 {[%emt 0:09:39]} 25. b4 {[%emt 0:00:17]} axb4 {[%emt 0:12:07]} 26. axb4 {[%emt 0:00:02]} Ra8 {[%emt 0:00:10]} 27. Rbc1 {[%emt 0:06:09]} Rac8 {[%emt 0:06:34]} 28. Ra1 {[%emt 0:00:54]} Ra8 {[%emt 0:07:56]} 29. Rxa8 {[%emt 0:04:59]} Rxa8 {[%emt 0:00:53]} 30. c5 {[%emt 0:00:16]} bxc5 {[%emt 0:00:06]} 31. bxc5 {[%emt 0:00:01]} Bc7 {[%emt 0:01:35]} 32. Rc1 {[%emt 0:03:58]} Rb8 {[%emt 0:01:04]} 33. Ba3 {[%emt 0:16:38]} Qd5 {[%emt 0:03:49]} 34. c6 {[%emt 0:02:26]} h6 {[%emt 0:03:59]} 35. Bb4 {[%emt 0:07:30]} Kh7 {[%emt 0:01:25]} 36. Rc5 {[%emt 0:06:24]} Qf3 {[%emt 0:00:04]} 37. Rc1 {[%emt 0:04:43]} Rb5 {[%emt 0:00:29]} 38. Bf8 {[%emt 0:01:50]} Qd5 {[%emt 0:01:05]} 39. Qe2 {[%emt 0:02:57]} Kg8 {[%emt 0:00:53]} 40. Be7 {[%emt 0:00:00]} Rb6 {[%emt 0:00:00]} 41. Qc2 {[%emt 0:10:39]} Qe6 {[%emt 0:08:08]} 42. Ba3 {[%emt 0:00:28]} Qd5 {[%emt 0:02:18]} 1/2-1/2

[Event "EYCC Open-U18 2019"]
[Site "Bratislava"]
[Date "2019.08.03"]
[Round "2.12"]
[White "Crevatin, Leo"]
[Black "Murzin, Volodar"]
[Result "0-1"]
[ECO "E70"]
[WhiteElo "2146"]
[BlackElo "2429"]
[Annotator "NA"]
[PlyCount "90"]
[EventDate "2019.08.02"]
[EventType "swiss"]
[EventCountry "SVK"]
[SourceTitle "playchess.com"]
[Source "ChessBase"]
[SourceQuality "1"]
[TimeControl "40/5400+30:1800+30"]

1. d4 {[%emt 0:00:00]} Nf6 {[%emt 0:00:00]} 2. c4 {[%emt 0:00:00]} g6 {[%emt 0:00:00]} 3. Nc3 {[%emt 0:00:00]} Bg7 {[%emt 0:00:00]} 4. e4 {[%emt 0:00:00]} O-O {[%emt 0:00:00]} 5. Be3 {[%emt 0:00:00]} d6 {[%emt 0:00:11]} 6. f3 {[%emt 0:00:00]} Nbd7 {[%emt 0:00:19]} 7. Qd2 {[%emt 0:02:17]} a6 {[%emt 0:00:31]} 8. O-O-O {[%emt 0:00:32]} e5 {[%emt 0:07:37]} 9. g4 {[%emt 0:05:34]} b5 {[%emt 0:06:44]} 10. h4 {[%emt 0:06:15]} h5 {[%emt 0:07:06]} 11. g5 {[%emt 0:08:12]} b4 {[%emt 0:10:23]} 12. Na4 {[%emt 0:06:00]} Nh7 {[%emt 0:00:52]} 13. d5 {[%emt 0:02:36]} a5 {[%emt 0:02:48]} 14. c5 {[%emt 0:05:11]} Nxc5 {[%emt 0:00:57]} 15. Nxc5 {[%emt 0:00:08]} dxc5 {[%emt 0:00:03]} 16. Bxc5 {[%emt 0:00:40]} Re8 {[%emt 0:00:19]} 17. Kb1 {[%emt 0:11:55]} Bd7 {[%emt 0:07:00]} 18. Nh3 {[%emt 0:08:14]} Qc8 {[%emt 0:04:26]} 19. Nf2 {[%emt 0:02:36]} c6 {[%emt 0:01:55]} 20. dxc6 {[%emt 0:04:39]} Qxc6 {[%emt 0:07:06]} 21. Qd6 {[%emt 0:06:59]} Qc8 {[%emt 0:05:05]} 22. Bb6 {[%emt 0:02:56]} Nf8 {[%emt 0:09:27]} 23. Rc1 {[%emt 0:03:01]} Qb7 {[%emt 0:05:08]} 24. Bc4 {[%emt 0:06:02]} Be6 {[%emt 0:07:38]} 25. Bd5 {[%emt 0:02:06]} Bxd5 {[%emt 0:01:05]} 26. exd5 {[%emt 0:00:05]} Qa6 {[%emt 0:01:34]} 27. Ne4 {[%emt 0:03:46]} Rac8 {[%emt 0:01:47]} 28. Bc7 {[%emt 0:03:13]} Qd3+ {[%emt 0:02:06]} 29. Ka1 {[%emt 0:00:09]} Qxf3 {[%emt 0:00:49]} 30. Rce1 {[%emt 0:01:35]} a4 {[%emt 0:00:28]} 31. Rhf1 {[%emt 0:01:33]} Qh3 {[%emt 0:02:46]} 32. Ba5 {[%emt 0:02:38]} a3 {[%emt 0:00:32]} 33. Bxb4 {[%emt 0:02:33]} axb2+ {[%emt 0:00:14]} 34. Kxb2 {[%emt 0:00:07]} Qd3 {[%emt 0:01:37]} 35. Nc5 {[%emt 0:02:09]} e4+ {[%emt 0:00:46]} 36. Rf6 {[%emt 0:00:51]} Bxf6+ {[%emt 0:00:47]} 37. Qxf6 {[%emt 0:01:16]} Rxc5 {[%emt 0:00:18]} 38. Bxc5 {[%emt 0:01:10]} Rb8+ {[%emt 0:00:00]} 39. Ka1 {[%emt 0:00:28]} Nd7 {[%emt 0:02:27]} 40. Qd4 {[%emt 0:00:00]} Nxc5 {[%emt 0:00:00]} 41. Qxc5 {[%emt 0:01:55]} Qd2 {[%emt 0:03:55]} 42. Rb1 {[%emt 0:03:20]} Rxb1+ {[%emt 0:00:06]} 43. Kxb1 {[%emt 0:00:01]} e3 {[%emt 0:00:01]} 44. Qc8+ {[%emt 0:06:36]} Kh7 {[%emt 0:02:17]} 45. Qc2 {[%emt 0:06:27]} Qf2 {[%emt 0:00:40]} 0-1

[Event "EYCC Open-U18 2019"]
[Site "Bratislava"]
[Date "2019.08.03"]
[Round "2.13"]
[White "Zarubitski, Viachaslau"]
[Black "Galiana Fernandez, Adrian"]
[Result "1-0"]
[ECO "C65"]
[WhiteElo "2424"]
[BlackElo "2302"]
[Annotator "NA"]
[PlyCount "72"]
[EventDate "2019.08.02"]
[EventType "swiss"]
[EventCountry "SVK"]
[SourceTitle "playchess.com"]
[Source "ChessBase"]
[SourceQuality "1"]
[TimeControl "40/5400+30:1800+30"]

1. e4 {[%emt 0:00:00]} e5 {[%emt 0:00:00]} 2. Nf3 {[%emt 0:00:00]} Nc6 {[%emt 0:00:00]} 3. Bb5 {[%emt 0:00:00]} Nf6 {[%emt 0:00:00]} 4. d3 {[%emt 0:00:00]} Bc5 {[%emt 0:00:00]} 5. Bxc6 {[%emt 0:00:00]} dxc6 {[%emt 0:00:00]} 6. Nc3 {[%emt 0:00:00]} O-O {[%emt 0:00:34]} 7. h3 {[%emt 0:00:25]} Re8 {[%emt 0:00:22]} 8. Be3 {[%emt 0:00:44]} Bf8 {[%emt 0:00:43]} 9. Qd2 {[%emt 0:07:35]} a5 {[%emt 0:00:33]} 10. O-O {[%emt 0:01:23]} a4 {[%emt 0:01:07]} 11. a3 {[%emt 0:01:21]} c5 {[%emt 0:01:46]} 12. Rae1 {[%emt 0:15:04]} Nd7 {[%emt 0:01:12]} 13. Nh2 {[%emt 0:02:28]} Nb8 {[%emt 0:00:10]} 14. f4 {[%emt 0:02:11]} exf4 {[%emt 0:00:24]} 15. Bxf4 {[%emt 0:03:20]} Be6 {[%emt 0:00:10]} 16. Nf3 {[%emt 0:02:13]} h6 {[%emt 0:05:44]} 17. Qf2 {[%emt 0:06:57]} Nc6 {[%emt 0:12:32]} 18. Nb5 {[%emt 0:07:18]} Bd6 {[%emt 0:07:59]} 19. Nxd6 {[%emt 0:01:11]} cxd6 {[%emt 0:00:06]} 20. Qg3 {[%emt 0:00:09]} Qf6 {[%emt 0:00:28]} 21. Bxd6 {[%emt 0:31:10]} Qxb2 {[%emt 0:00:17]} 22. Bxc5 {[%emt 0:03:29]} Qxc2 {[%emt 0:01:24]} 23. d4 {[%emt 0:00:13]} Bc4 {[%emt 0:02:12]} 24. Rf2 {[%emt 0:00:09]} Qc3 {[%emt 0:01:08]} 25. Qc7 {[%emt 0:03:40]} Rad8 {[%emt 0:04:09]} 26. d5 {[%emt 0:04:08]} Ne5 {[%emt 0:22:37]} 27. Bb4 {[%emt 0:00:21]} Nxf3+ {[%emt 0:00:24]} 28. Rxf3 {[%emt 0:00:02]} Qd4+ {[%emt 0:00:12]} 29. Kh1 {[%emt 0:01:01]} Bxd5 {[%emt 0:03:37]} 30. exd5 {[%emt 0:00:28]} Rxe1+ {[%emt 0:00:19]} 31. Bxe1 {[%emt 0:00:03]} Qxd5 {[%emt 0:00:09]} 32. Rxf7 {[%emt 0:01:52]} Qxf7 {[%emt 0:00:21]} 33. Qxd8+ {[%emt 0:00:03]} Kh7 {[%emt 0:00:10]} 34. Qd3+ {[%emt 0:00:06]} Kg8 {[%emt 0:00:05]} 35. Qd8+ {[%emt 0:00:02]} Kh7 {[%emt 0:00:07]} 36. Qd3+ {[%emt 0:00:02]} Kg8 {[%emt 0:00:10]} 1-0

[Event "EYCC Open-U18 2019"]
[Site "Bratislava"]
[Date "2019.08.03"]
[Round "2.14"]
[White "Golikov, Daniil"]
[Black "Mitsis, Georgios"]
[Result "1-0"]
[ECO "A46"]
[WhiteElo "2257"]
[BlackElo "2399"]
[Annotator "NA"]
[PlyCount "57"]
[EventDate "2019.08.02"]
[EventType "swiss"]
[EventCountry "SVK"]
[SourceTitle "playchess.com"]
[Source "ChessBase"]
[SourceQuality "1"]
[TimeControl "40/5400+30:1800+30"]

1. d4 {[%emt 0:00:00]} Nf6 {[%emt 0:00:00]} 2. Nf3 {[%emt 0:00:00]} e6 {[%emt 0:00:00]} 3. g3 {[%emt 0:00:15]} c5 {[%emt 0:01:50]} 4. Bg2 {[%emt 0:01:01]} cxd4 {[%emt 0:00:12]} 5. Nxd4 {[%emt 0:00:09]} d5 {[%emt 0:00:06]} 6. O-O {[%emt 0:01:25]} e5 {[%emt 0:00:24]} 7. Nf3 {[%emt 0:01:14]} Nc6 {[%emt 0:00:08]} 8. c4 {[%emt 0:00:52]} d4 {[%emt 0:00:07]} 9. e3 {[%emt 0:00:14]} Be7 {[%emt 0:00:18]} 10. exd4 {[%emt 0:00:06]} exd4 {[%emt 0:00:08]} 11. Bf4 {[%emt 0:00:10]} O-O {[%emt 0:00:19]} 12. Ne5 {[%emt 0:00:04]} Qb6 {[%emt 0:02:22]} 13. Qb3 {[%emt 0:01:57]} Be6 {[%emt 0:08:29]} 14. Nd2 {[%emt 0:08:54]} Rac8 {[%emt 0:08:00]} 15. Qxb6 {[%emt 0:00:32]} axb6 {[%emt 0:00:21]} 16. Ndf3 {[%emt 0:02:16]} Nxe5 {[%emt 0:09:39]} 17. Nxe5 {[%emt 0:01:29]} Bxc4 {[%emt 0:01:21]} 18. Nxc4 {[%emt 0:01:47]} Rxc4 {[%emt 0:00:06]} 19. Rfc1 {[%emt 0:08:06]} Rfc8 {[%emt 0:08:18]} 20. Bxb7 {[%emt 0:03:33]} Rxc1+ {[%emt 0:02:15]} 21. Rxc1 {[%emt 0:00:04]} Rxc1+ {[%emt 0:00:36]} 22. Bxc1 {[%emt 0:00:01]} Nd7 {[%emt 0:21:20]} 23. Bd5 {[%emt 0:09:06]} Ne5 {[%emt 0:19:55]} 24. Be4 {[%emt 0:03:04]} d3 {[%emt 0:04:20]} 25. a3 {[%emt 0:29:49]} Bc5 {[%emt 0:04:54]} 26. Kf1 {[%emt 0:04:40]} Bd4 {[%emt 0:06:56]} 27. b3 {[%emt 0:00:01]} Bc3 {[%emt 0:00:34]} 28. Be3 {[%emt 0:00:26]} Bb2 29. a4 1-0

[Event "EYCC Open-U18 2019"]
[Site "Bratislava"]
[Date "2019.08.03"]
[Round "2.15"]
[White "Bronstein, Or"]
[Black "Zabolotnov, Evgeny"]
[Result "1/2-1/2"]
[ECO "B11"]
[WhiteElo "2378"]
[BlackElo "2284"]
[Annotator "NA"]
[PlyCount "81"]
[EventDate "2019.08.02"]
[EventType "swiss"]
[EventCountry "SVK"]
[SourceTitle "playchess.com"]
[Source "ChessBase"]
[SourceQuality "1"]
[TimeControl "40/5400+30:1800+30"]

1. e4 {[%emt 0:00:00]} c6 {[%emt 0:00:52]} 2. Nf3 {[%emt 0:00:06]} d5 {[%emt 0:00:06]} 3. Nc3 {[%emt 0:00:04]} Bg4 {[%emt 0:00:48]} 4. h3 {[%emt 0:00:10]} Bh5 {[%emt 0:00:05]} 5. exd5 {[%emt 0:03:40]} cxd5 {[%emt 0:00:08]} 6. g4 {[%emt 0:00:13]} Bg6 {[%emt 0:00:02]} 7. Ne5 {[%emt 0:00:12]} Nc6 {[%emt 0:00:48]} 8. d4 {[%emt 0:00:21]} e6 {[%emt 0:04:01]} 9. h4 {[%emt 0:16:44]} f6 {[%emt 0:07:27]} 10. h5 {[%emt 0:12:59]} fxe5 {[%emt 0:08:46]} 11. hxg6 {[%emt 0:00:06]} h6 {[%emt 0:01:34]} 12. dxe5 {[%emt 0:04:00]} Nge7 {[%emt 0:09:20]} 13. Bd3 {[%emt 0:11:08]} Nxe5 {[%emt 0:04:04]} 14. Bb5+ {[%emt 0:00:12]} N7c6 {[%emt 0:03:25]} 15. Qe2 {[%emt 0:07:05]} Bd6 {[%emt 0:09:33]} 16. f4 {[%emt 0:16:37]} Nxg6 {[%emt 0:01:23]} 17. Qxe6+ {[%emt 0:04:41]} Qe7 {[%emt 0:00:39]} 18. Qxe7+ {[%emt 0:00:06]} Ngxe7 {[%emt 0:00:32]} 19. Bd2 {[%emt 0:00:19]} O-O {[%emt 0:03:23]} 20. f5 {[%emt 0:02:52]} Bg3+ {[%emt 0:09:25]} 21. Kf1 {[%emt 0:00:08]} Rac8 {[%emt 0:05:35]} 22. Kg2 {[%emt 0:00:50]} Be5 {[%emt 0:00:35]} 23. Rae1 {[%emt 0:00:50]} Bf6 {[%emt 0:00:43]} 24. Rh3 {[%emt 0:07:01]} a6 {[%emt 0:07:26]} 25. Ba4 {[%emt 0:00:16]} Rfd8 {[%emt 0:03:14]} 26. Ne2 {[%emt 0:06:06]} Ne5 {[%emt 0:03:20]} 27. Nf4 {[%emt 0:01:34]} b5 {[%emt 0:05:17]} 28. Bb3 {[%emt 0:00:09]} Nxg4 {[%emt 0:00:39]} 29. Re6 {[%emt 0:03:39]} Nxf5 {[%emt 0:03:51]} 30. Ba5 {[%emt 0:00:48]} Rd6 {[%emt 0:05:19]} 31. Nxd5 {[%emt 0:01:32]} Kh7 {[%emt 0:00:51]} 32. Re4 {[%emt 0:00:49]} Ne5 {[%emt 0:02:10]} 33. Bb4 {[%emt 0:00:14]} Rdc6 {[%emt 0:00:38]} 34. Rf4 {[%emt 0:00:11]} Rxc2+ {[%emt 0:00:27]} 35. Bxc2 {[%emt 0:00:07]} Rxc2+ {[%emt 0:00:01]} 36. Kf1 {[%emt 0:00:31]} Rc1+ {[%emt 0:01:00]} 37. Ke2 {[%emt 0:00:09]} Kg6 {[%emt 0:00:30]} 38. Re4 {[%emt 0:01:40]} Nd7 {[%emt 0:00:15]} 39. Nf4+ {[%emt 0:00:40]} Kf7 {[%emt 0:00:15]} 40. Bd2 {[%emt 0:00:00]} Rg1 {[%emt 0:00:00]} 41. Be1 {[%emt 0:08:47]} 1/2-1/2